bitfinex/quotes_BTCUSD_20240905
["timestamp","ask_amount","ask_price","bid_price","bid_amount"]
[1725543503411,1.342569,57000.0,56999.0,0.001628]
[1725543503646,1.980432,57000.0,56999.0,0.001628]
[1725543503898,1.814509,57000.0,56999.0,0.001628]
[1725543504336,0.289938,57000.0,56999.0,0.001628]
[1725543504554,0.04455095,57005.0,57000.0,0.350875]
[1725543504555,0.00081,57005.0,57000.0,0.350875]
[1725543504804,0.00081,57005.0,57001.0,0.175433]
[1725543505022,0.00081,57005.0,57000.0,0.350875]
[1725543505242,0.001,57000.0,56999.0,0.001628]
[1725543505470,0.004,57000.0,56999.0,0.177069]
[1725543505693,0.003,57000.0,56999.0,0.177069]
[1725543505916,0.003,57000.0,56999.0,0.001628]
[1725543506132,0.178438,57000.0,56999.0,0.001628]
[1725543506353,0.003,57000.0,56999.0,0.352511]
[1725543506562,0.003,57000.0,56999.0,0.177069]
[1725543506775,0.003,57000.0,56999.0,0.527952]
[1725543506990,0.00081,57005.0,57000.0,0.175438]
[1725543507210,0.176233,57005.0,57001.0,0.008]
[1725543507449,0.00081,57005.0,57001.0,0.008]
[1725543507666,0.17543,57003.0,57001.0,0.008]
[1725543507877,0.526281,57004.0,56999.0,0.015628]
[1725543508097,0.00081,57005.0,56999.0,0.191068]
[1725543508331,0.175429,57003.0,56999.0,0.191068]
[1725543508564,0.350853,57004.0,57000.0,0.014]
[1725543508775,0.350853,57004.0,56999.0,0.001628]
[1725543508990,0.00081,57005.0,57001.0,0.014]
[1725543509212,0.00081,57005.0,57004.0,0.87713]
[1725543509430,0.00081,57005.0,57004.0,1.316382]
[1725543509670,0.00081,57005.0,57004.0,1.667234]
[1725543509926,0.00081,57005.0,57004.0,2.31869696]
[1725543510150,0.00081,57005.0,57004.0,2.33869696]
[1725543510376,0.00081,57009.0,57008.0,2.08097173]
[1725543511020,0.00081,57009.0,57008.0,2.43179873]
[1725543511278,1e-06,57009.0,57008.0,2.91806042]
[1725543511502,0.00021174,57016.0,57015.0,2.152712]
[1725543511716,0.206082,57051.0,57038.0,0.350642]
[1725543511931,0.175289,57049.0,57044.0,0.175302]
[1725543512169,0.0308,57051.0,57032.0,0.29875073]
[1725543512170,0.175297,57046.0,57038.0,0.175319]
[1725543512388,0.175297,57046.0,57036.0,0.350654]
[1725543512389,0.175271,57055.0,57049.0,0.175287]
[1725543512669,0.175271,57055.0,57036.0,0.29875073]
[1725543512670,0.00081,57057.0,57056.0,0.525798]
[1725543512910,0.00081,57057.0,57054.0,0.1217]
[1725543513131,0.00081,57057.0,57054.0,0.296971]
[1725543513371,0.00081,57057.0,57043.0,0.1217]
[1725543513372,0.17527,57055.0,57043.0,0.1217]
[1725543513599,0.00471299,57057.0,57043.0,0.1217]
[1725543513600,0.00081,57057.0,57044.0,0.00350601]
[1725543513836,0.00081,57057.0,57043.0,0.1217]
[1725543513837,0.00081,57057.0,57046.0,0.175294]
[1725543514055,0.29875073,57054.0,57036.0,0.1254]
[1725543514313,0.175297,57046.0,57040.0,0.175313]
[1725543514527,0.0308,57052.0,57033.0,0.0939]
[1725543514746,0.1212,57051.0,57034.0,0.350667]
[1725543514957,0.35059,57047.0,57034.0,0.350667]
[1725543515189,0.35059,57047.0,57031.0,0.1257]
[1725543515190,0.29875073,57046.0,57031.0,0.1257]
[1725543515404,0.01,57050.0,57031.0,0.1257]
[1725543515405,0.002,57049.0,57031.0,0.1257]
[1725543515624,0.175314,57041.0,57040.0,0.014]
[1725543515846,0.525942,57041.0,57040.0,0.026]
[1725543516147,0.525938,57041.0,57040.0,0.026]
[1725543516357,0.995862,57041.0,57040.0,0.026]
[1725543516600,0.995862,57041.0,57040.0,0.012]
[1725543516821,0.645238,57041.0,57040.0,0.012]
[1725543517043,0.995862,57041.0,57040.0,0.012]
[1725543517268,0.175331,57035.0,57030.0,0.175344]
[1725543517481,0.175331,57035.0,57031.0,0.006]
[1725543517752,0.350631,57040.0,57031.0,0.006]
[1725543517753,0.52602,57032.0,57031.0,0.006]
[1725543517964,0.17533,57035.0,57034.0,0.013]
[1725543518195,0.0308,57052.0,57022.0,0.52650515]
[1725543518196,0.012,57053.0,57032.0,0.0976]
[1725543518412,0.350594,57046.0,57038.0,0.17532]
[1725543518625,0.350596,57046.0,57038.0,0.17532]
[1725543518842,0.175311,57042.0,57037.0,0.1198]
[1725543519066,0.352554,57053.0,57037.0,0.1198]
[1725543519067,0.175306,57043.0,57037.0,0.295124]
[1725543519312,0.175306,57043.0,57037.0,0.1198]
[1725543519564,0.3549425,57055.0,57039.0,0.01]
[1725543519828,0.175315,57041.0,57039.0,0.01]
[1725543520085,0.175305,57044.0,57039.0,0.01]
[1725543520330,0.175315,57040.0,57039.0,0.01]
[1725543520529,0.38131,57060.0,57038.0,0.006]
[1725543520530,0.175288,57049.0,57043.0,0.01]
[1725543520742,0.175274,57054.0,57044.0,0.350605]
[1725543520954,0.175267,57056.0,57048.0,0.002]
[1725543521184,0.175291,57048.0,57043.0,0.01]
[1725543521428,0.350568,57051.0,57043.0,0.01]
[1725543521660,0.175293,57048.0,57043.0,0.01]
[1725543521878,0.350576,57049.0,57043.0,0.01]
[1725543522100,0.3925793,57061.0,57042.0,0.01]
[1725543522101,0.3549425,57052.0,57042.0,0.01]
[1725543522359,0.3549425,57052.0,57048.0,0.026]
[1725543522360,0.525866,57049.0,57048.0,0.026]
[1725543522571,0.525866,57049.0,57048.0,0.012]
[1725543522572,1.239321,57049.0,57048.0,0.012]
[1725543522787,0.362876,57049.0,57040.0,0.011626]
[1725543523030,0.175305,57044.0,57040.0,0.011626]
[1725543523244,0.350564,57051.0,57040.0,0.011626]
[1725543523455,0.0123,57055.0,57043.0,0.014]
[1725543523456,0.175302,57045.0,57043.0,0.014]
[1725543523955,0.350584,57048.0,57043.0,0.014]
[1725543524195,0.350568,57051.0,57043.0,0.014]
[1725543524424,0.350559,57052.0,57046.0,0.175295]
[1725543524638,0.3557555,57057.0,57044.0,0.175303]
[1725543524639,0.175289,57049.0,57044.0,0.175303]
[1725543524861,0.350533,57056.0,57043.0,0.175305]
[1725543525081,0.175286,57050.0,57043.0,0.005]
[1725543525293,0.000813,57057.0,57045.0,0.01]
[1725543525512,0.000813,57057.0,57048.0,0.002]
[1725543525723,0.175274,57054.0,57049.0,0.175286]
[1725543525938,0.175274,57054.0,57050.0,0.175284]
[1725543526157,0.000813,57057.0,57051.0,0.175281]
[1725543526386,0.000813,57057.0,57055.0,0.175268]
[1725543526611,0.000813,57057.0,57053.0,0.350549]
[1725543526827,0.000813,57057.0,57056.0,0.525798]
[1725543527045,0.000813,57057.0,57056.0,0.535798]
[1725543527263,0.000813,57057.0,57056.0,1.02593]
[1725543527723,0.000813,57057.0,57056.0,1.376462]
[1725543527937,0.000813,57057.0,57056.0,1.470362]
[1725543528442,0.000813,57057.0,57056.0,1.820894]
[1725543528658,0.000813,57057.0,57056.0,1.831894]
[1725543528883,0.000813,57057.0,57056.0,1.481362]
[1725543529118,0.000813,57057.0,57056.0,1.470362]
[1725543529342,0.0112773,57061.0,57056.0,1.470362]
[1725543529343,0.0112773,57061.0,57060.0,1.6137205]
[1725543529557,0.0112773,57061.0,57060.0,1.8323205]
[1725543529768,0.0112773,57061.0,57060.0,2.1828285]
[1725543530411,0.0112773,57061.0,57060.0,1.83225009]
[1725543530859,0.0112773,57061.0,57060.0,0.1189]
[1725543531072,0.0112773,57061.0,57045.0,0.7055365]
[1725543531073,0.350524,57058.0,57049.0,0.1254]
[1725543531327,0.0112773,57061.0,57049.0,0.1254]
[1725543531536,0.0112773,57061.0,57047.0,0.02]
[1725543531537,0.7309215,57060.0,57047.0,0.00992959]
[1725543531754,0.350533,57056.0,57047.0,0.00992959]
[1725543532002,0.0123,57060.0,57047.0,0.00992959]
[1725543532243,0.350532,57057.0,57047.0,0.00992959]
[1725543532499,0.350517,57059.0,57052.0,0.02992959]
[1725543532741,0.350517,57059.0,57045.0,0.350598]
[1725543532742,0.0112773,57061.0,57056.0,0.12612959]
[1725543532977,0.0112773,57061.0,57058.0,0.01]
[1725543533194,0.0112773,57061.0,57056.0,0.13612959]
[1725543533195,0.0112773,57061.0,57060.0,0.01]
[1725543533414,0.0112773,57061.0,57057.0,0.01992959]
[1725543533415,0.1865283,57061.0,57058.0,0.01]
[1725543533637,0.350508,57060.0,57057.0,0.00992959]
[1725543533846,0.0112773,57061.0,57057.0,0.00992959]
[1725543534285,0.0112773,57061.0,57060.0,0.49107209]
[1725543534501,0.0112773,57061.0,57060.0,0.14612959]
[1725543534938,0.0112773,57061.0,57060.0,1.02439959]
[1725543535383,0.0112773,57061.0,57060.0,1.72985009]
[1725543536292,0.0112773,57061.0,57060.0,0.67389159]
[1725543536560,0.0112773,57061.0,57060.0,0.14612959]
[1725543536798,0.0112773,57061.0,57060.0,0.68789159]
[1725543537058,0.0112773,57061.0,57060.0,1.37734209]
[1725543537277,0.0112773,57061.0,57060.0,2.08935809]
[1725543537492,0.0112773,57061.0,57060.0,2.10335809]
[1725543537712,0.0112773,57061.0,57060.0,1.84665009]
[1725543537927,0.0112773,57061.0,57060.0,1.83765009]
[1725543538148,0.0112773,57061.0,57060.0,1.85165009]
[1725543539280,0.0112773,57061.0,57060.0,2.02716105]
[1725543539711,0.0112773,57061.0,57060.0,1.85165009]
[1725543540154,0.00021155,57066.0,57060.0,1.85165009]
[1725543540155,0.00021155,57066.0,57065.0,1.82287559]
[1725543540374,0.0123,57099.0,57065.0,1.82287559]
[1725543540375,0.350289,57096.0,57085.0,0.1252]
[1725543540591,0.52650515,57094.0,57085.0,0.1252]
[1725543540812,0.0449,57099.0,57085.0,0.1252]
[1725543541035,0.0449,57099.0,57074.0,0.1152]
[1725543541036,0.3549425,57093.0,57074.0,0.1152]
[1725543541253,0.01281,57100.0,57075.0,0.52650515]
[1725543541254,0.35036,57085.0,57075.0,0.52650515]
[1725543541471,0.175204,57076.0,57074.0,0.00992959]
[1725543541694,0.3549425,57088.0,57071.0,0.01]
[1725543541912,0.3549425,57088.0,57073.0,0.00992959]
[1725543541913,0.175206,57076.0,57073.0,0.00992959]
[1725543542139,0.0662,57092.0,57084.0,0.00992959]
[1725543542364,0.175177,57085.0,57084.0,0.00992959]
[1725543542573,0.175177,57085.0,57070.0,0.3569425]
[1725543542574,0.3549425,57091.0,57075.0,0.01]
[1725543542809,0.350327,57090.0,57077.0,0.18512959]
[1725543543031,0.0449,57092.0,57080.0,0.00992959]
[1725543543248,0.0449,57092.0,57073.0,0.1152]
[1725543543249,0.175195,57079.0,57078.0,0.00992959]
[1725543543520,0.175189,57081.0,57080.0,0.00992959]
[1725543543740,0.0261388,57097.0,57080.0,0.00992959]
[1725543543741,0.350317,57091.0,57084.0,0.01]
[1725543543956,0.0449,57094.0,57084.0,0.01]
[1725543544177,0.05194397,57132.0,57084.0,0.01]
[1725543544178,0.04521,57100.0,57093.0,0.01]
[1725543544424,0.04521,57100.0,57084.0,0.002]
[1725543544425,0.00031,57100.0,57098.0,0.01]
[1725543544632,0.00031,57100.0,57099.0,0.01]
[1725543544851,0.0449,57111.0,57097.0,0.00992959]
[1725543544852,0.175137,57098.0,57097.0,0.00992959]
[1725543545113,0.175158,57091.0,57090.0,0.14512959]
[1725543545349,0.0213,57109.0,57095.0,0.01]
[1725543545581,0.0213,57109.0,57102.0,0.01]
[1725543545582,0.350211,57109.0,57102.0,0.01]
[1725543545802,0.3549425,57118.0,57109.0,0.01]
[1725543545803,0.0449,57118.0,57109.0,0.01]
[1725543546027,0.0449,57118.0,57103.0,0.1228]
[1725543546028,0.0449,57118.0,57108.0,0.00992959]
[1725543546258,0.3549425,57116.0,57108.0,0.01]
[1725543546467,0.0449,57118.0,57108.0,0.01]
[1725543546468,0.175103,57109.0,57108.0,0.00992959]
[1725543546727,0.875517,57109.0,57108.0,0.00992959]
[1725543546955,0.0112773,57119.0,57111.0,0.01]
[1725543547177,0.175094,57112.0,57111.0,0.01]
[1725543547372,0.35163835,57115.0,57107.0,0.01992959]
[1725543547373,0.00146535,57115.0,57109.0,0.01]
[1725543547862,0.00146535,57115.0,57114.0,0.175088]
[1725543548097,0.00146535,57115.0,57114.0,0.01]
[1725543548350,0.00146535,57115.0,57114.0,0.668764]
[1725543548586,0.00146535,57115.0,57114.0,0.1435]
[1725543548822,0.00146535,57115.0,57109.0,0.1435]
[1725543549042,0.00146535,57115.0,57112.0,0.01]
[1725543549332,0.00146535,57115.0,57109.0,0.1335]
[1725543549333,0.00146535,57115.0,57114.0,0.67919359]
[1725543549572,0.00146535,57115.0,57114.0,1.14116959]
[1725543549797,0.00146535,57115.0,57114.0,1.12916959]
[1725543550010,0.00146535,57115.0,57114.0,0.77899359]
[1725543550234,0.00146535,57115.0,57114.0,1.12916959]
[1725543550698,0.3502743,57133.0,57114.0,1.12916959]
[1725543550699,0.0002113,57133.0,57132.0,0.20469769]
[1725543551150,0.0002113,57133.0,57132.0,0.55476369]
[1725543551373,0.0002113,57133.0,57130.0,0.7050195]
[1725543551374,0.0002113,57133.0,57130.0,0.00992959]
[1725543551594,0.3562425,57150.0,57131.0,0.0097351]
[1725543551595,0.175033,57132.0,57131.0,0.0097351]
[1725543551824,0.01141698,57138.0,57128.0,0.1217]
[1725543551825,0.175042,57129.0,57128.0,0.13162959]
[1725543552038,0.3549425,57144.0,57128.0,0.13162959]
[1725543552039,0.04173849,57142.0,57134.0,0.0097351]
[1725543552252,0.04173849,57142.0,57130.0,0.01966469]
[1725543552253,0.175036,57131.0,57130.0,0.01966469]
[1725543552471,0.175028,57134.0,57130.0,0.02966469]
[1725543552684,0.35003,57138.0,57133.0,0.01992959]
[1725543552927,0.525081,57134.0,57133.0,0.01992959]
[1725543553153,0.175057,57124.0,57123.0,0.00992959]
[1725543553385,0.0213,57136.0,57125.0,0.00992959]
[1725543553606,0.0213,57136.0,57121.0,0.1177]
[1725543553607,0.129877,57135.0,57126.0,0.02966469]
[1725543553869,0.0213,57141.0,57135.0,0.002]
[1725543553870,0.336566,57140.0,57135.0,0.002]
[1725543554084,0.175005,57141.0,57140.0,0.0097351]
[1725543554294,0.175005,57141.0,57130.0,0.016]
[1725543554295,0.175011,57139.0,57138.0,0.0097351]
[1725543554517,0.0213,57152.0,57135.0,0.00992959]
[1725543554518,0.0013,57150.0,57135.0,0.00992959]
[1725543554748,0.0013,57150.0,57135.0,0.02966469]
[1725543554749,0.175021,57136.0,57135.0,0.02966469]
[1725543554959,0.00562125,57149.0,57137.0,0.00992959]
[1725543555219,0.175021,57136.0,57135.0,0.00992959]
[1725543555434,0.175021,57136.0,57121.0,0.3549425]
[1725543555435,0.175048,57127.0,57126.0,0.00992959]
[1725543555657,0.175048,57128.0,57125.0,0.02966469]
[1725543555868,0.0662,57136.0,57125.0,0.02966469]
[1725543555869,0.08631231,57136.0,57125.0,0.02966469]
[1725543556111,0.08631231,57136.0,57122.0,0.1292]
[1725543556112,0.39145831,57136.0,57129.0,0.02966469]
[1725543556370,0.349997,57144.0,57134.0,0.0117351]
[1725543556371,0.08631231,57144.0,57134.0,0.0117351]
[1725543556592,0.08631231,57144.0,57141.0,0.0097351]
[1725543556593,0.175002,57142.0,57141.0,0.0097351]
[1725543556840,0.0013,57150.0,57141.0,0.0097351]
[1725543556841,0.0013,57150.0,57144.0,0.0097351]
[1725543557059,0.0013,57150.0,57141.0,0.1241]
[1725543557060,0.0013,57150.0,57149.0,0.0097351]
[1725543557521,0.176278,57150.0,57149.0,0.01992959]
[1725543557705,0.176278,57150.0,57149.0,0.02939979]
[1725543557706,0.0013,57150.0,57149.0,0.02939979]
[1725543558249,0.174972,57152.0,57151.0,0.0094702]
[1725543558532,0.00021122,57155.0,57151.0,0.1319702]
[1725543558767,0.00021122,57155.0,57154.0,0.0094702]
[1725543559009,0.17517322,57155.0,57154.0,0.0094702]
[1725543559259,0.00021122,57155.0,57154.0,0.0114702]
[1725543559509,0.349863,57166.0,57154.0,0.0114702]
[1725543559510,0.349744,57185.0,57172.0,0.03139979]
[1725543559777,0.349767,57181.0,57170.0,0.1276]
[1725543560004,0.0449,57185.0,57158.0,0.1276]
[1725543560005,0.11231,57172.0,57158.0,0.1276]
[1725543560245,0.11231,57172.0,57152.0,0.30785078]
[1725543560246,0.174968,57153.0,57152.0,0.13752959]
[1725543560485,0.174968,57153.0,57128.0,0.01]
[1725543560486,0.174962,57155.0,57154.0,0.014]
[1725543560741,0.524887,57155.0,57154.0,0.014]
[1725543560984,0.874812,57155.0,57154.0,0.014]
[1725543561215,0.070164,57169.0,57156.0,0.01]
[1725543561437,0.070164,57169.0,57154.0,0.014]
[1725543561438,0.183261,57168.0,57154.0,0.014]
[1725543561656,0.524887,57155.0,57154.0,0.014]
[1725543561881,0.524887,57155.0,57152.0,0.005]
[1725543561882,0.524905,57153.0,57152.0,0.005]
[1725543562182,1.224779,57153.0,57152.0,0.005]
[1725543562419,1.466202,57153.0,57152.0,0.005]
[1725543562792,1.466202,57153.0,57138.0,0.1192]
[1725543562793,0.525034,57139.0,57138.0,0.1192]
[1725543562795,0.175011,57139.0,57138.0,0.1192]
[1725543563132,0.35352046,57156.0,57138.0,0.1192]
[1725543563133,0.0213,57160.0,57141.0,0.01]
[1725543563332,0.819089,57160.0,57154.0,0.004]
[1725543563557,0.524887,57155.0,57154.0,0.004]
[1725543563758,0.524887,57155.0,57138.0,0.12912959]
[1725543563759,0.0213,57160.0,57141.0,0.01]
[1725543563996,0.5,57162.0,57138.0,0.13912959]
[1725543563997,0.254624,57159.0,57152.0,0.00992959]
[1725543564205,0.5,57162.0,57156.0,0.01]
[1725543564424,0.5,57168.0,57167.0,0.01]
[1725543564637,0.5,57168.0,57162.0,0.00992959]
[1725543564873,0.5,57168.0,57157.0,0.12692959]
[1725543564874,0.174953,57158.0,57157.0,0.12692959]
[1725543565334,0.174944,57161.0,57157.0,0.14692959]
[1725543565538,0.5,57168.0,57157.0,0.14692959]
[1725543565539,0.174941,57162.0,57161.0,0.01]
[1725543565766,0.174938,57164.0,57161.0,0.01]
[1725543565985,0.0112773,57176.0,57161.0,0.01]
[1725543566192,0.0112773,57176.0,57168.0,0.01]
[1725543566416,0.0112773,57176.0,57173.0,0.01]
[1725543566630,0.0112773,57176.0,57167.0,0.01992959]
[1725543566631,0.0112773,57176.0,57174.0,0.01]
[1725543566838,0.0112773,57176.0,57170.0,0.01]
[1725543567292,0.174929,57166.0,57165.0,0.24592959]
[1725543567512,0.174929,57166.0,57165.0,0.216]
[1725543567734,0.174929,57166.0,57165.0,0.12762959]
[1725543567950,0.0112773,57176.0,57167.0,0.00992959]
[1725543567951,0.174923,57168.0,57167.0,0.00992959]
[1725543568414,0.0112773,57176.0,57175.0,0.287001]
[1725543568629,0.0112773,57176.0,57175.0,0.13202959]
[1725543568837,0.0112773,57176.0,57175.0,0.30693059]
[1725543569102,0.0112773,57176.0,57175.0,1.00853659]
[1725543569329,0.5,57183.0,57182.0,0.20480959]
[1725543569330,0.38431004,57183.0,57182.0,0.20480959]
[1725543569565,0.00081,57197.0,57187.0,1.26598059]
[1725543569566,0.5,57188.0,57187.0,1.26598059]
[1725543569800,0.0328,57229.0,57211.0,0.01992959]
[1725543570045,0.0328,57229.0,57211.0,0.20472059]
[1725543570046,0.52650515,57212.0,57211.0,0.20472059]
[1725543570390,0.52650515,57212.0,57209.0,0.002]
[1725543570391,0.0112773,57233.0,57228.0,0.01]
[1725543570569,0.0112773,57233.0,57207.0,0.451401]
[1725543570570,0.0112773,57233.0,57229.0,0.1118]
[1725543570793,0.0112773,57233.0,57229.0,0.2392]
[1725543571019,0.0112773,57233.0,57229.0,1.13830615]
[1725543571241,0.0272062,57252.0,57244.0,0.25722959]
[1725543571242,0.02,57252.0,57244.0,0.25722959]
[1725543571470,0.02,57252.0,57244.0,0.25522959]
[1725543571698,0.02,57252.0,57244.0,0.78479377]
[1725543571933,0.02,57252.0,57244.0,1.30968573]
[1725543572160,0.02,57252.0,57244.0,1.30619255]
[1725543572392,0.02,57252.0,57251.0,1.38579505]
[1725543572667,0.02,57252.0,57251.0,1.31706801]
[1725543572926,0.02,57252.0,57251.0,0.78803659]
[1725543573181,0.02,57252.0,57251.0,0.26402959]
[1725543573446,0.0197,57252.0,57251.0,1.31288555]
[1725543573933,0.0197,57252.0,57251.0,0.26202959]
[1725543574144,0.0197,57252.0,57251.0,0.2421]
[1725543574385,0.0197,57252.0,57251.0,0.137]
[1725543574586,0.0197,57252.0,57251.0,1.15892959]
[1725543575002,0.194366,57252.0,57251.0,1.15692959]
[1725543575210,0.0197,57252.0,57251.0,1.15692959]
[1725543575660,0.194366,57252.0,57251.0,1.15692959]
[1725543576491,0.02861851,57252.0,57251.0,1.15692959]
[1725543576718,0.20328451,57252.0,57251.0,1.15892959]
[1725543577145,0.20328451,57252.0,57251.0,1.15692959]
[1725543577352,0.02861851,57252.0,57251.0,1.15892959]
[1725543578070,0.0197,57252.0,57251.0,2.21196801]
[1725543578281,0.5,57258.0,57257.0,1.38608659]
[1725543578511,0.00076331,57288.0,57277.0,0.1316]
[1725543578512,0.35352046,57284.0,57277.0,0.1316]
[1725543578727,0.0096531,57286.0,57257.0,0.27511096]
[1725543578728,0.87727246,57279.0,57278.0,0.01]
[1725543578941,0.87727246,57279.0,57267.0,0.1216]
[1725543578942,0.523815,57272.0,57271.0,0.01]
[1725543579153,0.523815,57272.0,57267.0,0.15152959]
[1725543579154,0.34921,57272.0,57267.0,0.15152959]
[1725543579402,0.0096531,57286.0,57274.0,0.01]
[1725543579403,0.349193,57275.0,57274.0,0.01]
[1725543579618,0.174608,57271.0,57270.0,0.02992959]
[1725543579867,0.349193,57275.0,57266.0,0.01]
[1725543579868,0.35352046,57275.0,57266.0,0.01]
[1725543580109,0.349241,57267.0,57260.0,0.01]
[1725543580380,0.5,57277.0,57252.0,0.012]
[1725543580381,0.4999,57277.0,57276.0,0.01]
[1725543580580,0.099,57301.0,57261.0,0.17551096]
[1725543580581,0.523715,57272.0,57271.0,0.01]
[1725543580786,0.174593,57276.0,57275.0,0.01]
[1725543580995,0.5,57278.0,57270.0,0.00992959]
[1725543580996,0.523824,57271.0,57270.0,0.00992959]
[1725543581229,0.523724,57271.0,57270.0,0.00992959]
[1725543581503,0.349182,57277.0,57273.0,0.01]
[1725543581713,0.174311,57270.0,57269.0,0.01]
[1725543581955,0.174632,57263.0,57262.0,0.01]
[1725543582175,0.6033,57278.0,57260.0,0.02992959]
[1725543582176,0.174538,57261.0,57260.0,0.02992959]
[1725543582411,0.523815,57261.0,57260.0,0.02992959]
[1725543582614,0.523715,57261.0,57260.0,0.02992959]
[1725543582852,0.349185,57277.0,57244.0,0.349377]
[1725543582853,0.35352046,57269.0,57257.0,0.00992959]
[1725543583064,0.35352046,57269.0,57251.0,0.02992959]
[1725543583065,0.349296,57258.0,57251.0,0.02992959]
[1725543583289,0.174661,57254.0,57251.0,0.02992959]
[1725543583493,0.523973,57255.0,57254.0,0.00992959]
[1725543583710,0.873289,57255.0,57254.0,0.00992959]
[1725543583933,0.5,57261.0,57241.0,0.002]
[1725543583934,0.096,57256.0,57247.0,0.00992959]
[1725543584150,0.524044,57247.0,57246.0,0.00992959]
[1725543584363,0.174681,57247.0,57246.0,0.00992959]
[1725543584573,0.524044,57247.0,57246.0,0.00992959]
[1725543584787,0.873407,57247.0,57246.0,0.00992959]
[1725543585006,0.096,57256.0,57240.0,0.02]
[1725543585007,0.174693,57243.0,57242.0,0.00992959]
[1725543585233,0.174693,57243.0,57242.0,0.01992959]
[1725543585453,0.349352,57249.0,57242.0,0.01992959]
[1725543585454,0.5,57247.0,57242.0,0.25472959]
[1725543585674,0.5,57247.0,57246.0,0.02992959]
[1725543586093,0.5,57247.0,57246.0,0.00992959]
[1725543586313,0.5,57247.0,57237.0,0.01]
[1725543586537,0.5,57247.0,57231.0,0.1252]
[1725543586538,0.1001,57247.0,57238.0,0.02992959]
[1725543586749,0.174706,57239.0,57238.0,0.02992959]
[1725543586970,0.5,57251.0,57238.0,0.00992959]
[1725543587182,0.5,57251.0,57240.0,0.01]
[1725543587425,0.1,57252.0,57238.0,0.00992959]
[1725543587426,0.5,57247.0,57238.0,0.00992959]
[1725543587638,0.524118,57239.0,57238.0,0.00992959]
[1725543588062,0.87353,57239.0,57238.0,0.00992959]
[1725543588323,0.524118,57239.0,57238.0,0.00992959]
[1725543588530,0.5,57239.0,57238.0,0.02992959]
[1725543588739,0.674706,57239.0,57238.0,0.02992959]
[1725543588947,1.024118,57239.0,57238.0,0.01992959]
[1725543589167,1.024118,57239.0,57238.0,0.02992959]
[1725543589168,0.674706,57239.0,57238.0,0.02992959]
[1725543589376,0.674706,57239.0,57238.0,1.01992959]
[1725543589628,1.37353,57239.0,57238.0,1.0]
[1725543589836,1.722942,57239.0,57238.0,1.0]
[1725543590731,1.424515,57239.0,57238.0,1.0]
[1725543590961,1.47353,57239.0,57238.0,1.0]
[1725543591172,1.971037,57239.0,57238.0,1.0]
[1725543591377,1.822942,57239.0,57238.0,1.0]
[1725543591580,1.936282,57239.0,57238.0,0.83984375]
[1725543591794,1.944162,57239.0,57238.0,0.83984375]
[1725543592262,1.976502,57239.0,57238.0,0.83984375]
[1725543592467,1.940862,57239.0,57238.0,0.83984375]
[1725543592682,1.963826,57239.0,57238.0,0.83984375]
[1725543592892,2.32212804,57239.0,57238.0,0.83984375]
[1725543593140,2.313238,57239.0,57238.0,0.83984375]
[1725543593601,2.172354,57239.0,57238.0,0.83984375]
[1725543593804,2.329044,57239.0,57238.0,0.83984375]
[1725543594437,2.315146,57239.0,57238.0,0.83984375]
[1725543594923,2.392104,57239.0,57238.0,0.83984375]
[1725543596238,2.392104,57239.0,57218.0,0.01]
[1725543596239,0.174794,57210.0,57209.0,0.1297]
[1725543596449,0.873972,57210.0,57209.0,0.1297]
[1725543596660,0.873972,57210.0,57202.0,0.01992959]
[1725543596661,0.174809,57205.0,57203.0,0.1297]
[1725543596866,0.174809,57205.0,57202.0,0.01]
[1725543596867,0.03782263,57207.0,57197.0,0.01]
[1725543597078,0.1,57211.0,57197.0,0.01]
[1725543597079,0.35352046,57200.0,57197.0,0.01]
[1725543597289,0.35352046,57200.0,57196.0,0.1281]
[1725543597290,0.174834,57197.0,57196.0,0.1281]
[1725543597511,0.174834,57197.0,57189.0,0.002]
[1725543597512,0.35352046,57200.0,57193.0,0.01]
[1725543597719,0.5,57204.0,57190.0,0.02992959]
[1725543597720,0.174852,57191.0,57190.0,0.02992959]
[1725543597936,0.35352046,57196.0,57190.0,0.02992959]
[1725543597937,0.34968,57196.0,57191.0,0.01]
[1725543598148,0.5,57204.0,57203.0,0.01]
[1725543598367,0.174801,57208.0,57206.0,0.00992959]
[1725543598582,0.349598,57209.0,57206.0,0.00992959]
[1725543598844,0.174803,57207.0,57206.0,0.00992959]
[1725543599061,0.52441,57207.0,57206.0,0.00992959]
[1725543599286,1.223624,57207.0,57206.0,0.00992959]
[1725543599535,0.349625,57204.0,57201.0,0.00992959]
[1725543599741,0.524484,57199.0,57198.0,0.00992959]
[1725543599948,0.87414,57199.0,57198.0,0.00992959]
[1725543600181,0.524502,57197.0,57196.0,0.14802959]
[1725543600386,0.524502,57197.0,57196.0,0.1281]
[1725543600590,0.87417,57197.0,57196.0,0.1281]
[1725543601052,0.0342,57207.0,57206.0,0.78604859]
[1725543601269,0.1026,57244.0,57227.0,0.1271]
[1725543601270,0.349426,57237.0,57227.0,0.1271]
[1725543601495,0.52650515,57228.0,57227.0,0.1271]
[1725543601693,0.5,57230.0,57227.0,0.1271]
[1725543601931,0.5,57230.0,57224.0,0.35352046]
[1725543601932,0.349479,57228.0,57224.0,0.01]
[1725543602160,0.5,57230.0,57223.0,0.00992959]
[1725543602373,0.349503,57224.0,57223.0,0.00992959]
[1725543602616,0.451982,57244.0,57222.0,0.00992959]
[1725543602617,0.349477,57229.0,57222.0,0.00992959]
[1725543602872,0.000812,57247.0,57246.0,0.68298259]
[1725543603076,0.000812,57247.0,57246.0,1.03650305]
[1725543603281,0.000812,57247.0,57246.0,1.38587205]
[1725543603719,0.000812,57247.0,57246.0,1.46147205]
[1725543604366,0.000812,57247.0,57246.0,0.76473405]
[1725543604577,0.000812,57247.0,57238.0,0.136]